Cogmind - Beta 16.1 @@@ ROGUE MODE // 2026.03.05 @ 18:06:27 Player: throbalt Result: Destroyed by D-53 Grenadier with Mini Grenade Launcher Performance ------------- Evolutions (0) 0 Regions Visited (4) 800 Robots Destroyed (25) 125 Value Destroyed (695) 695 Prototype IDs (23) 460 Alien Tech Used (0) 0 Bonus (224) 224 TOTAL SCORE: 2304 Bonus ------- Aligned with FarCom 300 Friendly Fire -76 Cogmind --------- Core Integrity 0/250 Matter 90/300 Energy 100/100 System Corruption 1% Temperature Cool (0) Movement Walking (200) Ox1 Location -9/Mines Parts ------- > --- POWER (1) -------- (None) > --- PROPULSION (2) --- Titanium Leg > --- UTILITY (2) ------ Medium Storage Unit Improved Terrain Scanner > --- WEAPON (2) ------- Slug Cannon > --- INVENTORY (10) --- Potential Leg Potential Leg Terrain Scan Processor System Shield Skeleton Box Assault Rifle Assault Rifle High-powered Shotgun Mini Grenade Launcher Signal Generator Peak State ------------ > --- POWER ------------ Ion Engine > --- PROPULSION ------- Aluminum Leg Titanium Leg > --- UTILITY ---------- Medium Storage Unit Improved Terrain Scanner > --- WEAPON ----------- Slug Cannon Mini Grenade Launcher > --- INVENTORY -------- Potential Leg Potential Leg Terrain Scan Processor System Shield Skeleton Box Assault Rifle Assault Rifle High-powered Shotgun Grenade Launcher Signal Generator [Rating: 19] Favorites ----------- Power Ion Engine Engine Ion Engine Propulsion Aluminum Leg Leg Aluminum Leg Utility Improved Terrain Scanner Device Improved Terrain Scanner Storage Medium Storage Unit Weapon Assault Rifle Energy Gun Small Laser Ballistic Gun Assault Rifle Ballistic Cannon Slug Cannon Launcher Grenade Launcher Build | -11 -10 -10 -10 -9 ------- Run | Yrd Mat Min Exi Min Slots Evolved . | . . . . . Power . | . . . . . Propulsion . | . . . . . Utility . | . . . . . Weapon . | . . . . . Parts Attached 21 | 7 7 3 2 2 Power 2 | 1 1 . . . Engine 2 | 1 1 . . . Core . | . . . . . Reactor . | . . . . . Propulsion 6 | 2 1 1 2 . Treads . | . . . . . Leg 6 | 2 1 1 2 . Wheel . | . . . . . Hover . | . . . . . Flight . | . . . . . Utility 3 | 2 1 . . . Device 1 | 1 . . . . Storage 2 | 1 1 . . . Processor . | . . . . . Hackware . | . . . . . Protection . | . . . . . Artifact . | . . . . . Weapon 10 | 2 4 2 . 2 Energy Gun 1 | 1 . . . . Energy Cannon . | . . . . . Ballistic Gun 5 | 1 3 1 . . Ballistic Cannon 1 | . . . . 1 Launcher 3 | . 1 1 . 1 Special Weapon . | . . . . . Impact Weapon . | . . . . . Slashing Weapon . | . . . . . Piercing Weapon . | . . . . . Special Melee Weapon . | . . . . . Unidentified Prototypes . | . . . . . Parts Lost 3 | . . . . 3 Power 1 | . . . . 1 Propulsion 1 | . . . . 1 Utility . | . . . . . Weapon 1 | . . . . 1 Highest Loss Streak 3 | . . . . 3 To Critical Strikes . | . . . . . Average Backups 8 | 2 8 9 9 9 Power . | . 1 . . . Propulsion 1 | 1 2 2 2 2 Utility 2 | . 1 2 3 2 Weapon 3 | . 3 3 3 3 Tool/Special . | . . . . . Unused Backups 17 | . 8 3 . 6 Power 2 | . 2 . . . Propulsion 5 | . 3 . . 2 Utility 6 | . 1 2 . 3 Weapon 3 | . 2 1 . . Tool/Special 1 | . . . . 1 Average Slot Usage (%) 98 | . 99 96 100 99 Engine 13 | . 14 14 14 13 Leg 28 | . 28 28 28 28 Device 14 | . 14 14 14 14 Storage 14 | . 14 14 14 14 Ballistic Gun 24 | . 25 19 26 26 Launcher 1 | . . 4 1 . Peak Build Rating 19 | 9 10 13 15 19 Average Rating 11 | 5 9 11 12 15 On Entrance 9 | . 9 10 12 15 Avg Prop Armor Cover (%) . | . . . . . Naked Turns . | . . . . . Heaviest Build 26 | 12 20 23 23 26 Greatest Support 27 | 20 20 20 27 27 Greatest Overweight (x) 2 | 2 . 1 1 1 Average Overweight (x) . | . . . . . Largest Inventory Capacity 10 | 8 10 10 10 10 Average Capacity 9 | 7 8 10 10 10 Most Carried 10 | 5 10 10 10 10 Average Carried 9 | 3 8 9 9 9 Final Capacity 10 | 8 10 10 10 10 Final Carried 10 | 5 10 10 10 10 Class Distribution -------------------- 70% | Mutant 29% | Skirmisher Dominant Class ---------------- Mutant | -10/Materials Mutant | -10/Mines Mutant | -10/Exiles Skirmisher | -9/Mines Resources | -11 -10 -10 -10 -9 ----------- Run | Yrd Mat Min Exi Min Matter Collected 771 | 209 231 328 . 3 Remotely . | . . . . . Salvage Created 592 | 42 239 232 . 79 Parts 44 | 3 22 14 . 5 Haulers Intercepted 1 | . 1 . . . Recyclers Shooed 1 | . 1 . . . Parts Field Recycled . | . . . . . Retrieved Matter . | . . . . . Parts Self-Destructed . | . . . . . Prevented . | . . . . . Parts Restored . | . . . . . Kills | -11 -10 -10 -10 -9 ------- Run | Yrd Mat Min Exi Min Combat Hostiles Destroyed 21 | . 7 11 . 3 Guns 6 | . 4 2 . . Cannons 1 | . . . . 1 AOE 14 | . 3 9 . 2 Classes Destroyed 7 | 1 3 . . 3 Tunneler 2 | 2 . . . . Hauler 1 | . 1 . . . Recycler 1 | . . . . 1 Swarmer 6 | . 3 3 . . Grunt 12 | . 4 8 . . Sentry 2 | . . . . 2 Demolisher 1 | . . . . 1 Best Kill Streak 4 | 2 3 4 . 4 Combat Bots Only 4 | . 3 4 . 3 Max Kills in Single Turn 3 | 1 3 3 . 2 Gunslinging . | . . . . . Exploded 3 | . 3 3 . 1 Melee . | . . . . . Uniques/NPCs Destroyed . | . . . . . Combat | -11 -10 -10 -10 -9 -------- Run | Yrd Mat Min Exi Min Hostile Shots Fired 75 | . 31 28 . 16 Missed 23 | . 11 10 . 2 Hits 52 | . 20 18 . 14 Projectile 52 | . 20 18 . 14 AOE 8 | . . . . 8 Critical Strikes 2 | . 1 1 . . Damage Taken 1004 | . 245 279 38 442 Core 255 | . 41 70 . 144 Absorbed by Shields . | . . . . . Regen/Repaired (Parts) 45 | . 45 . . . Core Remaining (%) 100 | 100 . . . . Volleys Fired 56 | 4 29 13 . 10 Largest 2 | 2 2 2 . 2 Hottest 70 | 60 50 63 . 70 Shots Fired 109 | 8 57 26 1 17 Gun 82 | 8 56 18 . . Cannon 10 | . . . . 10 Launcher 17 | . 1 8 1 7 Special . | . . . . . Kinetic 88 | 4 56 18 . 10 Thermal 4 | 4 . . . . Explosive 17 | . 1 8 1 7 Electromagnetic . | . . . . . Robot Hit Streak 7 | 1 7 4 2 4 Robot Miss Streak 3 | 2 3 3 . 3 Penetration Max . | . . . . . Secondary Targets . | . . . . . Shots Hit Robots 62 | 3 37 13 1 8 Core Hits 43 | 2 16 16 . 9 Critical Kills . | . . . . . Critical Parts Destroyed 1 | . . 1 . . Critical Strikes 3 | . . 1 . 2 Destroy 3 | . . 1 . 2 Melee Attacks . | . . . . . Impact . | . . . . . Slashing . | . . . . . Piercing . | . . . . . Sneak Attacks . | . . . . . Combat Hostiles . | . . . . . Follow-up Attacks . | . . . . . Damage Inflicted 1763 | 54 590 751 21 347 Guns 674 | 45 464 165 . . Cannons 143 | . . . . 143 Explosions 937 | . 126 586 21 204 Melee . | . . . . . Ramming 9 | 9 . . . . Kinetic 784 | 12 464 165 . 143 Thermal 33 | 33 . . . . Explosive 937 | . 126 586 21 204 Electromagnetic . | . . . . . Impact . | . . . . . Slashing . | . . . . . Piercing . | . . . . . Highest Corruption 1 | . 1 1 1 1 Average Corruption 1 | . 1 1 1 1 Corruption Purged . | . . . . . Corruption Blocked . | . . . . . Effects 16 | . 2 5 5 4 Message Errors 4 | . 1 1 2 . Matter Fused 3 | . . 1 1 1 Heat Flow Errors 4 | . . 1 1 2 Parts Rejected 1 | . . 1 . . Data Loss (minor) 2 | . . 1 . 1 Misfires 2 | . 1 . 1 . Overload Shots . | . . . . . Overflow Damage . | . . . . . Projectiles . | . . . . . Explosions . | . . . . . Melee . | . . . . . Knockbacks . | . . . . . Impact . | . . . . . Kinetic . | . . . . . Secondary . | . . . . . Self-Inflicted Damage 83 | . . 45 38 . Shots 3 | . . 2 1 . Rammed . | . . . . . Targets Rammed 2 | 2 . . . . Kicked 2 | 2 . . . . Crushed . | . . . . . Highest Temperature 210 | . 20 210 108 196 Average Temperature 57 | . 8 45 55 70 Received Heat Transfer 318 | . 153 138 . 27 Siege Activations . | . . . . . Martial Activations . | . . . . . Shielding Activations . | . . . . . Robots Disrupted . | . . . . . Combat Hostiles . | . . . . . Robots Corrupted . | . . . . . Combat Hostiles . | . . . . . Parts Fried . | . . . . . Impact Corruptions . | . . . . . Robots Melted . | . . . . . Combat Hostiles . | . . . . . Parts Melted . | . . . . . Heat Transferred 75 | 75 . . . . Parts Sabotaged . | . . . . . Parts Stolen . | . . . . . Parts Stripped . | . . . . . Power Chain Reactions . | . . . . . Alert | -11 -10 -10 -10 -9 ------- Run | Yrd Mat Min Exi Min Maximum Alert Level . | . . . . . Low Security (%) 100 | 100 100 100 . 100 Level 1 . | . . . . . Level 2 . | . . . . . Level 3 . | . . . . . Level 4 . | . . . . . Level 5 . | . . . . . High Security . | . . . . . Max Security . | . . . . . Peak Influence 153 | 10 95 153 . 89 Initial 18 | . . 18 . . Average 18 | . 16 51 . 1 Influence Increases 654 | 10 203 343 . 98 Destroy 0b10 Robot/C 420 | . 140 220 . 60 Destroy 0b10 Robot/NC 20 | 10 5 . . 5 Destroy Leader 72 | . 22 40 . 10 Allied During Kill 5 | . . 5 . . Successful Hack 18 | . 18 . . . Disable Machine 15 | . . 15 . . Destroy Structure 74 | . 3 48 . 23 Lose Combat Pursuer 30 | . 15 15 . . Influence Decreases 600 | 10 156 253 137 44 Entered New Map 166 | . . 29 137 . Time Decay 404 | 10 156 224 . 14 Lost Part 30 | . . . . 30 Squads Dispatched 5 | . 3 2 . . Investigation 3 | . 2 1 . . Extermination . | . . . . . Reinforcement 1 | . 1 . . . Assault 1 | . . 1 . . Garrison . | . . . . . Intercept . | . . . . . Searches Triggered . | . . . . . Construction Impeded . | . . . . . Haulers Reinforced . | . . . . . Active Scanning Responses . | . . . . . Cargo Convoy Interrupts . | . . . . . Stealth | -11 -10 -10 -10 -9 --------- Run | Yrd Mat Min Exi Min Distress Signals 2 | . 1 . . 1 Communications Jammed . | . . . . . Distress Signals . | . . . . . Times Spotted 35 | . 18 13 . 4 Peak Tracking Total 6 | . 6 4 . 2 Tactical Retreats 2 | . 1 1 . . Traps | -11 -10 -10 -10 -9 ------- Run | Yrd Mat Min Exi Min Traps Triggered 2 | . 2 . . . Indirectly . | . . . . . Trap Hack Attempts . | . . . . . Triggered . | . . . . . Disarmed . | . . . . . Reprogrammed . | . . . . . Reused . | . . . . . Traps Extracted . | . . . . . Installed . | . . . . . Triggered . | . . . . . Machines | -11 -10 -10 -10 -9 ---------- Run | Yrd Mat Min Exi Min Machines Disabled 1 | . . 1 . . Max in Single Turn 1 | . . 1 . . Machines Repaired . | . . . . . Machines Dismantled . | . . . . . Machines Sabotaged . | . . . . . Overloaded Fab Kills . | . . . . . Hacking | -11 -10 -10 -10 -9 --------- Run | Yrd Mat Min Exi Min Machines Accessed 9 | . 6 2 1 . Terminals 5 | . 5 . . . Fabricators . | . . . . . Repair Stations 1 | . 1 . . . Recycling Units . | . . . . . Scanalyzers . | . . . . . Garrison Access . | . . . . . Total Hacks 22 | . 19 2 1 . Successful 9 | . 6 2 1 . Failed 13 | . 13 . . . Catastrophic 1 | . 1 . . . Database Lockouts . | . . . . . Manual 9 | . 8 . 1 . Terminals 17 | . 17 . . . Fabricators . | . . . . . Repair Stations 2 | . 2 . . . Recycling Units . | . . . . . Scanalyzers . | . . . . . Garrison Access . | . . . . . Terminal Hacks 7 | . 4 2 1 . Open Door 2 | . . 2 . . Branch Access Points 1 | . 1 . . . Terminal Index 1 | . 1 . . . Patrol Status 1 | . 1 . . . Zone Layout 1 | . 1 . . . Proto ID Catalog 1 | . . . 1 . Fabricator Hacks . | . . . . . Repair Station Hacks 2 | . 2 . . . Scan Component 1 | . 1 . . . Repair 1 | . 1 . . . Recycling Unit Hacks . | . . . . . Scanalyzer . | . . . . . Garrison Access Hacks . | . . . . . Unauthorized Hacks . | . . . . . Terminals . | . . . . . Fabricators . | . . . . . Repair Stations . | . . . . . Recycling Units . | . . . . . Scanalyzers . | . . . . . Garrison Access . | . . . . . Data Cores Recovered . | . . . . . Used . | . . . . . Hacking Detections 5 | . 5 . . . Full Trace Events 2 | . 2 . . . Feedback Events . | . . . . . Feedback Blocked . | . . . . . Robot Schematics Acquired . | . . . . . Robots Built . | . . . . . Authchips . | . . . . . Time . | . . . . . Total Robot Build Rating . | . . . . . Part Schematics Acquired . | . . . . . Parts Built . | . . . . . Authchips . | . . . . . Time . | . . . . . Total Part Build Rating . | . . . . . Part Studies Acquired . | . . . . . Parts Repaired 1 | . 1 . . . Time 26 | . 26 . . . Parts Recycled . | . . . . . Recycled Matter . | . . . . . Retrieved Matter . | . . . . . Retrieved Components . | . . . . . Parts Scanalyzed . | . . . . . Part Schematics Acquired . | . . . . . Parts Damaged . | . . . . . Bothacking | -11 -10 -10 -10 -9 ------------ Run | Yrd Mat Min Exi Min Used RIF Installer . | . . . . . Robots Hacked . | . . . . . Non-combat . | . . . . . Combat . | . . . . . Robot Hacks Applied . | . . . . . Relay Couplers Released . | . . . . . Fabnet Peak Effective % . | . . . . . Robots Rewired . | . . . . . Allies Hacked . | . . . . . Hacks Repelled . | . . . . . Allies | -11 -10 -10 -10 -9 -------- Run | Yrd Mat Min Exi Min Total Allies 1 | . . 1 . . Largest Group 1 | . . 1 1 1 Highest-Rated Group 31 | . . 31 31 31 Highest-Rated Ally 31 | . . 31 31 31 Total Orders . | . . . . . Ally Attacks 6 | . . 3 . 3 Total Damage 106 | . . 63 . 43 Kills . | . . . . . Allies Corrupted . | . . . . . Allies Melted . | . . . . . Intel | -11 -10 -10 -10 -9 ------- Run | Yrd Mat Min Exi Min Active Infowar (turns) 2649 | 8 1004 524 306 807 Terrain 2649 | 8 1004 524 306 807 Robot Analysis Total . | . . . . . Derelict Logs Recovered . | . . . . . Drone Launches . | . . . . . Drone Recoveries . | . . . . . Exploration | -11 -10 -10 -10 -9 ------------- Run | Yrd Mat Min Exi Min Turns Passed 2734 | 93 1004 524 306 807 Spaces Moved 1469 | 52 683 298 241 195 Core 6 | 6 . . . . Treads . | . . . . . Legs 1463 | 46 683 298 241 195 Wheels . | . . . . . Hover . | . . . . . Flight . | . . . . . Fastest Speed 50 | 50 120 120 120 125 Average Speed 126 | 122 120 146 123 125 Slowest Speed 200 | 190 120 190 190 200 Overloaded Moves . | . . . . . Propulsion Burnouts . | . . . . . Robots Hopped . | . . . . . Potential Cave-ins . | . . . . . Cave-ins Triggered . | . . . . . Exploration Rate (%) 49 | 4 86 63 60 34 Regions Visited 4 Branch Regions 3 Pre-discovered Areas . | . . . . . Known Exits Taken 1 | . 1 . . . Unknown Exits Taken 3 | 1 . 1 1 . Scrap Searched 2 | . . 2 . . Spaces Dug . | . . . . . Terrain Destroyed 111 | . 2 61 11 37 Melee . | . . . . . Projectile 6 | . . . . 6 AOE 105 | . 2 61 11 31 Terrain Rammed . | . . . . . Walls Destroyed . | . . . . . Machines Disabled . | . . . . . Actions | -11 -10 -10 -10 -9 --------- Run | Yrd Mat Min Exi Min Total 2235 | 69 815 362 250 739 Wait 628 | . 71 30 . 527 Move 1465 | 51 682 297 240 195 Hop . | . . . . . Pick Up 29 | 5 13 6 3 2 Fast Attach 9 | 7 1 1 . . Attach 1 | . . 1 . . Detach . | . . . . . Swap 21 | . 7 7 4 3 Drop 24 | . 12 7 3 2 Fire 56 | 4 29 13 . 10 Melee . | . . . . . Ram . | . . . . . Kick 2 | 2 . . . . Crush . | . . . . . Escape Stasis . | . . . . . Rewire . | . . . . . Trap . | . . . . . Miscellaneous . | . . . . . Route ------- -11/Scrapyard -10/Materials (discovered 4 exits: [*Mat x2] / *Min x2) -10/Mines -10/Exiles (discovered 2 exits: [*Min x2]) -9/Mines History --------- Turn | Location | Event 22 | -11/Scrapyard | Discovered new exit (range 15) 94 | -11/Scrapyard | Entered Materials 143 | -10/Materials | Identified exit to Mines 314 | -10/Materials | Build established: Mutant 491 | -10/Materials | Repaired Assault Rifle 738 | -10/Materials | Discovered new exit (range 16) 955 | -10/Materials | Discovered new exit (range 15) 1098 | -10/Materials | Entered Mines 1202 | -10/Mines | Met a Derelict shopkeep closing up shop 1308 | -10/Mines | Met a Derelict who couldn't figure out how to use a Trap Extractor 1376 | -10/Mines | Received a Rocket Launcher from a helpful Derelict 1532 | -10/Mines | Met a Derelict testing a Signal Generator 1551 | -10/Mines | Found Signal Generator 1610 | -10/Mines | Deemed a non-threat by the Exiles lab entrance 1612 | -10/Mines | Discovered new exit (range 5) 1622 | -10/Mines | Entered Exiles 1622 | -10/Exiles | Accompanied by 1 ally 1646 | -10/Exiles | Discovered new exit (range 14) 1682 | -10/Exiles | Met 8R-AWN 1703 | -10/Exiles | Met EX-HEX 1739 | -10/Exiles | Met EX-BIN 1754 | -10/Exiles | Aligned with FarCom system 1755 | -10/Exiles | Given EX-Vault access code 1785 | -10/Exiles | Opened EX-Vault 1797 | -10/Exiles | Found Potential Leg 1799 | -10/Exiles | Found Potential Leg 1803 | -10/Exiles | Found Skeleton Box 1831 | -10/Exiles | Warned to stay clear of 0b10 Research branches 1843 | -10/Exiles | Exiles lab attacked by MAIN.C 1916 | -10/Exiles | Discovered new exit (range 12) 1928 | -10/Exiles | Stole two prototypes: Potential Leg, Skeleton Box 1928 | -10/Exiles | Entered Mines 1928 | -9/Mines | Accompanied by 1 ally 1956 | -9/Mines | A weapon hastily lodged in a ceiling crevice suddenly fell to the ground 1991 | -9/Mines | Assembled infested the area 1996 | -9/Mines | Assisted by a Guerilla fighting off Assembled 2224 | -9/Mines | Build established: Skirmisher 2708 | -9/Mines | Core integrity fell below 50% 2724 | -9/Mines | Core integrity fell below 20% 2735 | -9/Mines | Destroyed by D-53 Grenadier with Mini Grenade Launcher Last Messages --------------- T-07 Excavator is excavating. U-05 Engineer lays Concrete. U-05 Engineer builds a Wall. K-01 Serf collects debris. Acquired 3 matter. R-06 Scavenger sends out distress signal. Y-45 Defender destroyed. R-06 Scavenger destroyed. Slug penetrates Earth. The unstable cave ceiling collapses. Y-45 Defender suffers critical hit (Destroy). Destroyed Lgt. Armor Plating. Y-45 Defender destroyed. The unstable cave ceiling collapses. D-53 Grenadier destroyed. Grenade Launcher destroyed. Ion Engine destroyed. D-53 Grenadier suffers critical hit (Destroy). System corrupted: Component data lost. Aluminum Leg destroyed. Map ----- +----------------------------------------------------+ | ?????????????????????????????????????????????????? | | ?????????????????????????????????????????????????? | | ?????????????????????????????????????????????????? | | ?????????????????????????????????????????????????? | | ????????????????????????? ??????????????????????? | | ????????????????????????# ??????????????????????? | | ????????????????????????# ????# ?????#?????????? | | ?????????????????###????# ???? #?????????????? | | ????????????????## #???# #??# #?????????????? | | ??????????????### ##?# #?# #?????????? ??? | | ??????????????# ##$ ## ??????????????? | | ?????????????# ???????????????? | | ?????????????? ????????????????? | | ??????????????? % ?????????????????? | | ???????????????## ? ????????????????? | | ?????????????????# ?#????? ??????????? | | ??????????????????# #????????????#?###??? | | ??????????????????# d #??#?????????## ##?? | | ??????????????????#; ##??????????## #?? | | ???????????????????# #####?##????# #?# | | ??????????????#????# #?????#?# #?? | | ?????????????????#?# % ### #??#???## ##? | | ???????????????????# ## #????### #? | | ?????????????????#??# ## ##?### #? | | ??????????#????????## ## #???# ##? | | ????????????????????# @ ## #??## #?? | | ????????????????????# ## #### ##?? | | ???????????????????## ### ## ####?? | | ????????????????????## = # ##???#? | | ????????????????????# z! = #?????? | | ????????????????????# # =! ##????? | | ???????????????????? # %= ##?#?? | | ???????????????????### ### ##??? | | ?????????????????? #?# ##?? | | ?????????????????# #?## #?? | | ??????????????????#?## ##??### #?? | | ?????????????????????# # ###?????## ##?# | | ????????????????????# ;?######?????# ##?#? | | ?????????????????????# #????????#??## ###???? | | ?????????????????????# ???????????#?## ##?????? | | ???????????????????????#????????#????### #?##???? | | ???????????????????????????????????##### ###?###? | | ????????????????????????????#?#???## #??#?? | | ???????????????????????????????????# ##???# | | ????????????????????????????????? + ###??? | | ???????????????????????????????? ??+ ####?? | | ???????????????????????????????????# #?#?## | | ??????????????????????????????????## ##?##? | | ?????????????????????????????????##### #?#??# | | ????????????????????????????#?#?#????# ########?# | +----------------------------------------------------+ Best States ------------- Heat Dissipation 25 Energy Generation 10 Energy Capacity 250 Matter Stores 300 Matter Capacity 300 Sight Range 16 Terrain Scan Range 16 Terrain Scan Density 10 Evasion (%) 55 Item Schematics ----------------- None Robot Schematics ------------------ None Fabricated ------------ Nothing Repaired ---------- Assault Rifle | 55% | -10/Materials Studied --------- None Alien Tech Used ----------------- None Achievements -------------- Maybe Next Time I'll Detach My Launcher Challenges ------------ None Game ------ Seed SurveybotShockboltBoregun Manual? 0 Play Time 00:25:03 Cumulative 26.4 hours Start 2026.03.05 @ 17:40:42 End 2026.03.05 @ 18:06:27 Sessions 1 Manual Loads 0 Difficulty Rogue Special Mode None Game No. 27 Rogue 25 Adventurer 0 Explorer 2 Win Type - Total 0 Types 0/0/0/0/0/0/0/0/0/0 Lore% 17 Gallery% 22 Achievement% 17 Wizard Run 0 Options --------- Layout 1 ASCII 0 Keyboard 1 Movement Vi Keybinds 0 Fullscreen 1 Font 24/Smallcaps Map View 50x35 Zoom Use 0% Tactical HUD 0 Map Filters NONE Filters NONE Steam 1 RUN: 18133293-1334-4d34-a77b-c6401a42eaec